bitfinex/quotes_ETHUSD_20250411
["timestamp","ask_amount","ask_price","bid_price","bid_amount"]
[1744376898394,12.83563,1558.2,1557.9,6.41874]
[1744376898596,6.4178,1558.2,1557.9,6.41874]
[1744376898795,6.4178,1558.2,1557.8,10.25041]
[1744376898996,6.48270361,1558.1,1557.7,12.83926]
[1744376899222,6.41767,1558.2,1557.8,3.0]
[1744376899448,6.41766,1558.2,1557.8,9.41919]
[1744376899647,6.41766,1558.2,1557.9,6.41872]
[1744376899829,6.48242361,1558.1,1557.8,9.41927]
[1744376900023,12.90069361,1558.1,1557.8,9.41927]
[1744376900227,0.19333361,1558.1,1557.6,0.8312]
[1744376900432,6.41945,1557.8,1557.5,7.840904]
[1744376900740,12.83891,1557.8,1557.5,7.840904]
[1744376900950,6.41945,1557.8,1557.6,0.7840904]
[1744376901306,12.83899,1557.8,1557.5,7.840904]
[1744376901647,12.83899,1557.8,1557.2,7.20623]
[1744376901648,0.06423361,1557.7,1557.2,7.20623]
[1744376901812,6.42047,1557.6,1557.2,7.20623]
[1744376902017,12.84101,1557.6,1557.3,3.0]
[1744376902411,6.42047,1557.6,1557.3,9.42132]
[1744376902842,12.84079,1557.6,1557.3,3.0]
[1744376903003,6.42032,1557.6,1557.3,10.441957]
[1744376903217,0.06423361,1557.7,1557.3,1.020627]
[1744376903574,6.42219,1557.1,1557.0,0.1256]
[1744376903749,6.48642361,1557.1,1557.0,0.1256]
[1744376904634,7.16552361,1557.1,1557.0,0.1256]
[1744376904823,10.32726134,1557.1,1557.0,0.1256]
[1744376905022,6.42508,1556.4,1556.3,7.68757304]
[1744376905358,6.48931361,1556.4,1556.3,7.68757304]
[1744376905545,7.16841361,1556.4,1556.3,7.68757304]
[1744376905747,7.16841361,1556.4,1556.2,3.1e-06]
[1744376905748,16.86959,1556.3,1556.2,3.1e-06]
[1744376905934,23.30303548,1556.3,1556.2,3.1e-06]
[1744376906260,20.30303548,1556.3,1556.2,3.1e-06]
[1744376906464,0.1291,1556.3,1556.2,3.1e-06]
[1744376906829,6.42508,1556.4,1556.2,3.1e-06]
[1744376907024,0.06423361,1556.3,1556.2,3.1e-06]
[1744376907374,6.42508,1556.4,1556.2,3.1e-06]
[1744376907375,0.06423361,1556.4,1556.2,3.1e-06]
[1744376907675,0.06423361,1556.4,1556.1,6.42628]
[1744376907826,0.06423361,1556.4,1556.1,7.71156]
[1744376908172,6.42568,1556.3,1555.9,9.42699]
[1744376908341,0.06423361,1556.3,1556.0,6.42664]
[1744376908725,6.48985361,1556.3,1555.9,9.42699]
[1744376909129,6.48985361,1556.3,1555.9,3.0]
[1744376909428,0.06423361,1556.3,1556.0,6.42646]
[1744376909755,0.06423361,1556.3,1556.0,12.85299]
[1744376909938,0.06423361,1556.3,1556.0,6.42646]
[1744376910122,0.06423361,1556.3,1556.0,12.85301]
[1744376910325,0.06423361,1556.3,1556.0,6.42646]
[1744376911568,0.06423361,1556.3,1555.9,6.42706]
[1744376911734,14.29418797,1556.3,1555.9,6.42706]
[1744376911930,1.37873436,1556.3,1555.7,6.42789]
[1744376912131,6.42689,1556.0,1555.5,6.4286]
[1744376912335,6.49155361,1555.9,1555.5,12.85725]
[1744376912645,6.49155361,1555.9,1555.5,6.4286]
[1744376912843,6.49155361,1555.9,1555.5,12.85722]
[1744376913258,6.49155361,1555.9,1555.6,6.42827]
[1744376913259,0.06423361,1555.9,1555.6,6.42827]
[1744376913462,0.06423361,1555.9,1555.6,12.85648]
[1744376913751,0.06423361,1555.9,1555.6,6.42821]
[1744376913952,1.50751487,1555.9,1555.6,6.42821]
[1744376914358,0.06423361,1555.9,1555.8,6.42756]
[1744376914875,6.49055361,1556.1,1555.7,6.42762]
[1744376915043,0.06423361,1556.0,1555.7,6.42762]
[1744376915242,0.06423361,1556.0,1555.7,12.85539]
[1744376916457,0.06423361,1556.0,1555.4,10.25019]
[1744376916641,0.1291,1556.2,1555.9,6.42693]
[1744376916642,0.06423361,1556.1,1555.9,6.42693]
[1744376916985,0.06423361,1556.1,1555.8,6.42755]
[1744376917165,6.49059361,1556.1,1555.7,12.85571]
[1744376917364,0.06423361,1556.1,1555.8,6.42754]
[1744376917554,0.06423361,1556.1,1555.8,12.85493]
[1744376917948,0.06423361,1556.2,1556.0,6.4265]
[1744376918463,0.06423361,1556.2,1555.8,2.076693]
[1744376918464,6.49028361,1556.2,1555.8,8.504023]
[1744376918676,7.293,1556.3,1556.0,6.4267]
[1744376918878,0.06423361,1556.2,1556.1,6.4262]
[1744376919045,7.293,1556.3,1556.1,6.4262]
[1744376919446,7.293,1556.3,1556.2,6.4259]
[1744376919645,0.06423361,1556.5,1556.2,12.8518]
[1744376919859,6.48890361,1556.5,1556.2,6.4259]
[1744376920475,0.06423361,1556.5,1556.2,12.8518]
[1744376920699,0.06423361,1556.5,1556.2,12.85165]
[1744376920841,0.06423361,1556.5,1556.2,6.42575]
[1744376921041,6.48903361,1556.5,1556.1,14.13771]
[1744376921286,14.94741197,1556.5,1556.1,6.42621]
[1744376921597,8.45834836,1556.5,1556.1,12.85241]
[1744376921897,8.52258197,1556.5,1556.1,12.8524]
[1744376922584,2.09778197,1556.5,1556.2,6.4259]
[1744376922887,0.06423361,1556.5,1556.2,12.85168]
[1744376923075,0.1291,1556.6,1556.3,6.42543]
[1744376923299,6.42483,1556.5,1556.1,6.42623]
[1744376923451,0.06423361,1556.4,1556.1,12.85246]
[1744376923652,0.06423361,1556.4,1556.1,14.137706]
[1744376925092,0.06423361,1556.4,1556.1,12.85242]
[1744376925293,0.06423361,1556.4,1556.1,6.42619]
[1744376925492,6.48941361,1556.4,1556.0,6.42672]
[1744376925816,6.48941361,1556.4,1556.1,6.42621]
[1744376925974,7.78083297,1556.4,1556.1,6.42621]
[1744376926149,7.78083297,1556.4,1556.1,12.85241]
[1744376926349,6.4257,1556.3,1555.9,9.42701]
[1744376926583,6.48993361,1556.3,1555.9,9.42701]
[1744376926799,0.06423361,1556.3,1556.0,6.42654]
[1744376926963,0.06423361,1556.3,1555.7,6.91660293]
[1744376926964,6.42645,1556.1,1555.7,6.91660293]
[1744376927156,0.06423361,1556.0,1555.8,3.0]
[1744376927371,0.06423361,1556.0,1555.8,9.42753]
[1744376927573,0.06423361,1556.0,1555.8,6.42753]
[1744376927751,0.06423361,1556.1,1555.8,12.85478]
[1744376928093,0.06423361,1556.1,1555.8,12.85479]
[1744376928247,0.06423361,1556.1,1555.6,3.8265]
[1744376928452,6.49075361,1556.1,1555.7,6.42785]
[1744376928649,6.42673,1556.0,1555.7,6.42785]
[1744376928878,6.49075361,1556.1,1555.7,12.8557]
[1744376928879,12.91738361,1556.1,1555.7,12.8557]
[1744376929190,12.85402,1556.0,1555.6,6.42826]
[1744376929349,0.06423361,1555.9,1555.6,6.42826]
[1744376929655,0.06423361,1555.9,1555.6,12.85652]
[1744376930097,0.06423361,1555.9,1555.7,6.42791]
[1744376930243,0.06423361,1555.9,1555.7,12.85582]
[1744376930449,0.06423361,1556.0,1555.7,12.85582]
[1744376930678,0.06423361,1556.0,1555.8,6.42751]
[1744376931166,0.06423361,1556.0,1555.7,6.42791]
[1744376931376,8.00010481,1556.0,1555.6,6.42827]
[1744376931556,1.57316481,1556.0,1555.5,9.4288]
[1744376931763,0.06423361,1556.0,1555.7,6.42774]
[1744376932856,0.06423361,1556.0,1555.7,12.8556]
[1744376933472,6.4273,1555.9,1555.5,9.42854]
[1744376933681,0.06423361,1555.8,1555.5,6.42854]
[1744376933977,0.06423361,1555.8,1555.5,12.85723]
[1744376934480,0.71338697,1555.8,1555.5,12.85723]
[1744376935012,7.14111697,1555.8,1555.4,7.21505]
[1744376935166,6.42821,1555.7,1555.3,9.90372838]
[1744376935475,0.06423361,1555.6,1555.3,6.90372838]
[1744376935793,0.06423361,1555.7,1555.5,6.42874]
[1744376936000,0.71338697,1555.8,1555.6,6.42838]
[1744376936295,6.42815,1555.7,1555.3,9.90386838]
[1744376936601,0.06423361,1555.6,1555.4,3.0]
[1744376936769,0.06423361,1555.7,1555.4,9.42912]
[1744376937110,0.06423361,1555.8,1555.5,12.85738]
[1744376937264,7.79666697,1555.8,1555.4,9.42909]
[1744376937469,6.42811,1555.7,1555.4,3.0]
[1744376937668,0.06423361,1555.6,1555.4,3.0]
[1744376938813,0.06423361,1555.6,1555.0,6.43076]
[1744376938814,7.48933361,1555.6,1555.0,6.43076]
[1744376939105,12.86136,1555.1,1554.7,12.86394]
[1744376939310,0.06423361,1555.0,1554.7,6.43197]
[1744376939515,6.49511361,1555.0,1554.7,12.86395]
[1744376940008,0.06423361,1555.0,1554.7,12.86395]
[1744376940205,0.06423361,1555.0,1554.8,6.43167]
[1744376940512,0.06423361,1555.0,1554.6,7.26177]
[1744376940719,6.49475361,1555.1,1554.6,7.26166]
[1744376941022,6.43087,1555.0,1554.6,7.73615153]
[1744376941197,12.92705361,1554.9,1554.6,6.90675153]
[1744376941374,0.06423361,1554.9,1554.6,6.90675153]
[1744376941571,0.06423361,1554.9,1554.6,13.33916153]
[1744376941776,6.49551361,1554.9,1554.6,6.90674153]
[1744376941983,1.07127978,1554.9,1554.6,3.47433153]
[1744376942291,0.06423361,1555.0,1554.8,6.43169]
[1744376942605,7.4261,1555.2,1554.9,6.43102]
[1744376942796,21.03287336,1555.5,1555.1,6.43025]
[1744376942997,0.06423361,1555.4,1555.1,12.86052]
[1744376943199,6.49346361,1555.4,1555.1,6.43025]
[1744376943401,6.49346361,1555.4,1555.1,12.86057]
[1744376943579,0.06423361,1555.4,1555.2,6.43002]
[1744376944400,0.06423361,1555.4,1555.1,6.43025]
[1744376944600,0.06423361,1555.4,1555.2,0.8041]
[1744376944802,4.78472419,1555.8,1555.7,6.42797]
[1744376945112,4.78472419,1555.8,1555.7,7.24717]
[1744376945882,11.21106419,1556.1,1555.7,13.67498]
[1744376946083,11.2752978,1556.1,1555.8,6.42751]
[1744376946290,4.8489578,1556.1,1555.9,6.42714]
[1744376946514,4.8489578,1556.1,1555.8,6.42743]
[1744376947215,4.78472419,1556.1,1555.9,12.85405]
[1744376947389,4.78472419,1556.1,1556.0,6.42673]
[1744376947589,4.78472419,1556.1,1556.0,5.51703515]
[1744376947926,4.78472419,1556.1,1556.0,0.49299121]
[1744376948128,5.26319661,1556.1,1555.9,6.42695]
[1744376948315,4.78472419,1556.1,1555.9,6.42695]
[1744376949318,0.19333361,1556.2,1555.9,6.42695]
[1744376949915,0.19333361,1556.2,1556.0,6.42661]
[1744376950323,0.06423361,1556.3,1556.0,6.42661]
[1744376950616,0.06423361,1556.4,1556.1,12.85222]
[1744376950827,0.81246697,1556.4,1556.1,6.42608]
[1744376950987,6.42557,1556.3,1555.9,3.0]
[1744376951192,0.06423361,1556.2,1555.9,3.0]
[1744376951601,0.06423361,1556.2,1555.9,6.42714]
[1744376951806,0.06423361,1556.3,1556.0,6.42651]
[1744376952003,0.06423361,1556.3,1556.1,6.42632]
[1744376952206,4.78472419,1556.5,1556.2,6.4259]
[1744376952808,11.20958419,1556.5,1556.1,0.7599]
[1744376952993,0.06423361,1556.4,1556.1,7.18616]
[1744376953193,0.06423361,1556.4,1556.2,12.8515]
[1744376953592,4.78472419,1556.5,1556.2,12.8515]
[1744376953822,0.06423361,1556.4,1556.2,6.4256]
[1744376954043,0.06423361,1556.4,1556.2,6.90697951]
[1744376954323,5.33385358,1556.5,1556.2,6.90697951]
[1744376954523,0.54912939,1556.5,1556.1,7.1861]
[1744376954735,6.97396939,1556.5,1556.0,9.42664]
[1744376954915,6.42571,1556.3,1555.8,13.34387852]
[1744376955092,0.06423361,1556.2,1555.8,6.91638852]
[1744376955297,6.49031361,1556.2,1555.8,6.91638852]
[1744376955525,12.91647361,1556.2,1555.8,6.91638852]
[1744376955739,0.06423361,1556.2,1555.8,3.48908852]
[1744376955896,7.4171,1556.4,1556.0,6.42646]
[1744376956096,0.80594361,1556.3,1556.0,6.42646]
[1744376956296,0.80594361,1556.3,1555.9,0.7691]
[1744376956509,7.4171,1556.4,1556.2,6.4259]
[1744376956510,0.06423361,1556.4,1556.2,6.4259]
[1744376956711,0.06423361,1556.5,1556.3,6.42538]
[1744376956907,0.1291,1556.6,1556.3,6.42538]
[1744376957112,0.19333361,1556.6,1556.4,6.42479]
[1744376957332,7.84430939,1556.6,1556.2,9.91051024]
[1744376957633,1.41993939,1556.6,1556.0,3.76]
[1744376957818,6.55472,1556.3,1555.8,7.66853852]
[1744376958127,0.06423361,1556.2,1555.8,14.09595852]
[1744376958302,1.36871697,1556.2,1555.8,14.09595852]
[1744376958498,7.79476697,1556.2,1555.8,1.24098852]
[1744376958726,14.22107697,1556.2,1555.8,0.48908852]
[1744376958932,7.73053336,1556.2,1555.8,6.42753]
[1744376959233,14.22081697,1556.2,1555.8,6.42753]
[1744376959538,1.4220817,1556.1,1555.7,9.42794]
[1744376959722,0.06423361,1556.0,1555.7,12.8558]
[1744376959898,0.19333361,1555.9,1555.5,6.42868]
[1744376960102,6.62060361,1555.9,1555.5,12.85735]
[1744376960298,7.92534997,1555.9,1555.5,12.85735]
[1744376960498,0.1291,1555.8,1555.1,0.8045]
[1744376960729,0.1291,1555.6,1555.0,6.90667887]
[1744376960931,6.55773,1555.6,1555.2,6.42969]
[1744376961131,6.49308361,1555.5,1555.2,6.42969]
[1744376961332,0.1291,1555.8,1555.5,6.4288]
[1744376961632,0.19333361,1555.8,1555.5,6.42871]
[1744376961833,0.19333361,1555.8,1555.5,12.85737]
[1744376962027,0.19333361,1555.8,1555.6,6.42834]
[1744376962233,1.4220817,1556.1,1555.7,6.42797]
[1744376962434,0.06423361,1556.0,1555.7,6.42797]
[1744376962731,0.06423361,1556.0,1555.7,12.85579]
[1744376962933,0.06423361,1556.0,1555.8,6.4275]
[1744376963106,6.61883361,1556.3,1555.9,6.42689]
[1744376963435,0.19333361,1556.3,1556.1,6.42617]
[1744376963635,0.06423361,1556.3,1556.1,6.42617]
[1744376963825,12.07272419,1556.5,1556.3,6.42531]
[1744376964028,4.78472419,1556.5,1556.4,6.42508]
[1744376964219,4.78472419,1556.5,1556.4,9.42508]
[1744376964426,6.18811575,1556.6,1556.4,15.85016]
[1744376964736,6.25234936,1556.6,1556.4,3.0]
[1744376964925,6.8775843,1556.6,1556.3,12.85083]
[1744376965252,6.42512,1556.4,1556.0,7.2033]
[1744376965411,12.91560361,1556.3,1555.9,6.42701]
[1744376965746,6.42827,1555.7,1555.2,6.42993]
[1744376965907,0.06423361,1555.6,1555.3,6.4295]
[1744376966103,0.06423361,1555.6,1555.3,0.48566939]
[1744376966302,13.84371,1555.8,1555.4,11.53035371]
[1744376966303,0.06423361,1555.7,1555.4,11.53035371]
[1744376966621,0.06423361,1555.7,1555.4,7.21624]
[1744376966827,0.06423361,1555.8,1555.6,6.42803]
[1744376967014,7.35123361,1555.9,1555.7,6.42797]
[1744376967212,13.77863361,1555.9,1555.5,12.85737]
[1744376967415,6.42759,1555.8,1555.5,6.42865]
[1744376968039,6.49221361,1555.7,1555.4,9.42914]
[1744376968333,6.42759,1555.8,1555.5,12.8575]
[1744376968511,0.06423361,1555.7,1555.4,12.85818]
[1744376968711,14.23244336,1555.9,1555.5,6.42844]
[1744376968935,12.9819,1556.1,1555.7,6.42797]
[1744376969231,12.9819,1556.1,1555.8,6.42752]
[1744376969232,0.06423361,1556.0,1555.8,6.42752]
[1744376969836,0.06423361,1556.0,1555.7,12.85568]
[1744376970041,12.91794361,1556.0,1555.7,6.42784]
[1744376970223,6.42717,1555.9,1555.6,6.42833]
[1744376970429,0.06423361,1555.8,1555.6,6.42827]
[1744376970631,4.78096607,1556.3,1556.1,6.42593]
[1744376970944,4.78096607,1556.3,1556.2,9.4259]
[1744376971145,4.78096607,1556.3,1556.2,13.73996371]
[1744376971344,4.78096607,1556.3,1556.2,14.50626371]
[1744376971548,4.78096607,1556.3,1556.2,17.24211408]
[1744376972457,6.18811575,1556.7,1556.6,6.42425]
[1744376972618,6.18811575,1556.7,1556.6,9.42425]
[1744376972823,6.18811575,1556.7,1556.6,10.24448668]
[1744376973150,6.18811575,1556.7,1556.6,10.18025]
[1744376973351,6.18811575,1556.7,1556.6,12.91457537]
[1744376973527,6.18811575,1556.7,1556.6,9.42425]
[1744376973726,6.18811575,1556.7,1556.6,3.0]
[1744376974116,6.18811575,1556.7,1556.5,3.0]
[1744376974322,6.25234936,1556.7,1556.5,6.42467]
[1744376974674,0.68946855,1556.7,1556.4,6.42494]
[1744376974836,6.55414,1556.5,1556.1,0.0195668]
[1744376975036,0.06423361,1556.4,1556.1,0.0195668]
[1744376975243,0.1291,1556.5,1556.2,6.42586]
[1744376975423,0.06423361,1556.6,1556.3,12.85062]
[1744376975618,0.06423361,1556.6,1556.3,6.4253]
[1744376975824,0.06423361,1556.6,1556.1,0.0195668]
[1744376975825,6.42512,1556.4,1556.1,0.0195668]
[1744376976029,0.06423361,1556.3,1556.1,0.0195668]
[1744376976230,0.06423361,1556.3,1556.1,6.4458568]
[1744376976560,6.42562,1556.3,1556.1,0.0195668]
[1744376976760,0.06423361,1556.2,1556.1,0.0195668]
[1744376977063,0.06423361,1556.4,1556.2,12.8518]
[1744376977258,0.06423361,1556.4,1556.2,6.4259]
[1744376977460,0.06423361,1556.5,1556.3,6.42549]
[1744376977661,0.19333361,1556.7,1556.4,6.42482]
[1744376977861,0.06423361,1556.7,1556.5,6.42452]
[1744376978065,6.4241,1556.7,1556.3,6.42537]
[1744376978358,0.06423361,1556.6,1556.3,12.85071]
[1744376978568,7.4101,1556.9,1556.4,6.42494]
[1744376978569,0.06423361,1556.8,1556.4,6.42494]
[1744376978871,6.48779361,1556.8,1556.4,12.84986]
[1744376979063,6.48779361,1556.8,1556.4,12.84987]
[1744376979263,6.48779361,1556.8,1556.4,6.42491]
[1744376979462,12.91158361,1556.8,1556.4,6.42491]
[1744376979661,8.51986197,1556.8,1556.2,0.7818]
[1744376979862,8.51986197,1556.8,1556.1,0.0195668]
[1744376979863,6.55405,1556.5,1556.1,6.4456768]
[1744376980191,6.48946361,1556.4,1556.1,6.4458568]
[1744376980389,0.06423361,1556.4,1556.1,12.8721468]
[1744376980794,6.48944361,1556.4,1556.1,0.0195668]
[1744376980996,0.72608797,1556.4,1556.1,0.0195668]
[1744376981193,12.85149,1556.3,1556.1,0.0195668]
[1744376981392,6.49013361,1556.2,1556.1,0.0195668]
[1744376981548,0.06423361,1556.2,1556.1,0.0195668]
[1744376981745,0.06423361,1556.3,1556.1,6.4458868]
[1744376982295,0.06423361,1556.4,1556.2,6.42577]
[1744376982509,6.48935361,1556.4,1556.1,6.4457868]
[1744376982797,6.48935361,1556.4,1556.1,0.0195668]
[1744376982961,12.91476361,1556.4,1556.1,0.0195668]
[1744376983150,6.48935361,1556.4,1556.1,0.0195668]
[1744376983345,6.48935361,1556.4,1556.1,6.4457568]
[1744376983346,2.09655497,1556.4,1556.1,6.4457568]
[1744376983562,0.06423361,1556.4,1556.1,6.4457568]
[1744376983769,6.42555,1556.3,1556.1,0.0195668]
[1744376984074,0.06423361,1556.2,1556.1,0.0195668]
[1744376984275,0.06423361,1556.3,1556.1,0.0195668]
[1744376985181,0.06423361,1556.4,1556.1,6.4456868]
[1744376985500,13.57646597,1556.4,1556.1,0.0195668]
[1744376985795,14.36690236,1556.4,1556.1,0.0195668]
[1744376985959,7.94180236,1556.4,1556.1,6.4458668]
[1744376986164,7.34423361,1556.4,1556.1,12.8721668]
[1744376986375,7.34423361,1556.4,1556.1,12.8720468]
[1744376986577,7.34423361,1556.4,1556.1,12.8719268]
[1744376986777,6.42567,1556.3,1556.1,0.0195668]
[1744376987003,0.06423361,1556.2,1556.1,0.0195668]
[1744376987202,7.78169597,1556.2,1556.1,0.0195668]
[1744376987397,1.35579597,1556.2,1556.1,0.0195668]
[1744376988103,0.06423361,1556.2,1556.1,0.0195668]
[1744376988270,0.06423361,1556.3,1556.0,12.85305]
[1744376988468,0.06423361,1556.3,1556.1,12.85235]
[1744376989101,7.34423361,1556.4,1556.2,6.42584]
[1744376989298,0.06423361,1556.4,1556.2,6.4453668]
[1744376989471,0.06423361,1556.6,1556.4,6.42497]
[1744376989667,7.4101,1556.7,1556.5,6.4246]
[1744376989668,7.34523361,1556.7,1556.5,6.4246]
[1744376989880,6.42455,1556.6,1556.2,7.43192001]
[1744376990086,0.06423361,1556.5,1556.2,20.28350001]
[1744376990270,0.06423361,1556.5,1556.2,0.0195668]
[1744376990471,0.06423361,1556.6,1556.3,12.85076]
[1744376990801,0.06423361,1556.6,1556.4,6.42502]
[1744376991301,0.19333361,1556.6,1556.3,6.42546]
[1744376991469,0.06423361,1556.6,1556.3,13.32624937]
[1744376991673,0.06423361,1556.6,1556.4,6.42505]
[1744376991880,0.06423361,1556.6,1556.4,6.42498]
[1744376992403,0.06423361,1556.6,1556.2,6.42572]
[1744376992404,7.86559497,1556.6,1556.2,6.42572]
[1744376992700,7.86546497,1556.6,1556.2,9.4259]
[1744376992906,1.44114497,1556.6,1556.2,6.90493548]
[1744376993201,1.44114497,1556.6,1556.1,0.8182]
[1744376993417,1.44114497,1556.6,1556.3,6.42545]
[1744376993617,1.44114497,1556.6,1556.3,6.42538]
[1744376993919,0.06423361,1556.6,1556.3,6.42538]
[1744376994283,0.06423361,1556.6,1556.3,12.85075]
[1744376994485,0.06423361,1556.6,1556.4,6.42505]
[1744376994682,0.06423361,1556.6,1556.3,6.42537]
[1744376994982,0.06423361,1556.6,1556.4,6.42492]
[1744376995185,7.34423361,1556.7,1556.4,6.42492]
[1744376995413,6.42481,1556.5,1556.1,0.8182]
[1744376995616,0.06423361,1556.4,1556.1,7.24438]
[1744376995839,6.48932361,1556.4,1556.0,9.42665]
[1744376996032,0.06423361,1556.4,1556.1,6.42618]
[1744376996394,6.48934361,1556.4,1556.1,6.42618]
[1744376996589,0.06423361,1556.4,1556.1,6.42618]
[1744376996790,0.06423361,1556.4,1556.0,3.0]
[1744376997095,7.28,1556.3,1555.7,0.792]
[1744376997299,6.42698,1556.0,1555.6,13.33454642]
[1744376997630,0.06423361,1555.9,1555.6,6.90628642]
[1744376998390,12.91890361,1555.9,1555.5,11.54931353]
[1744376998592,20.19990361,1555.9,1555.5,11.54931353]
[1744376998792,13.70823,1555.9,1555.5,17.97799353]
[1744376998991,7.281,1555.9,1555.6,12.85657]
[1744376999187,13.77248361,1555.9,1555.5,19.77577288]
[1744376999403,13.70825,1555.9,1555.5,19.77577288]
[1744376999617,0.06423361,1555.8,1555.6,6.42831]
[1744377000127,6.42932,1555.4,1555.0,10.75922353]
[1744377000328,6.42932,1555.4,1555.0,7.20059]
[1744377000329,0.06423361,1555.3,1555.0,7.20059]
[1744377000511,0.06423361,1555.3,1554.9,9.08383554]
[1744377000827,12.8614,1555.1,1554.9,9.08383554]
[1744377000991,0.06423361,1555.0,1554.8,6.43155]
[1744377001193,0.06423361,1555.3,1555.2,6.43004]
[1744377001386,7.282,1555.6,1555.2,10.75853353]
[1744377001387,13.90385361,1555.6,1555.2,10.75853353]
[1744377001633,6.42898,1555.5,1555.1,15.86082]
[1744377001842,6.42898,1555.5,1555.1,9.43041]
[1744377002120,6.43024,1555.2,1554.8,6.43155]
[1744377002300,6.49486361,1555.1,1554.7,17.95750353]
[1744377002502,0.06423361,1555.1,1554.8,6.43165]
[1744377002725,0.06423361,1555.1,1554.9,6.43113]
[1744377003021,0.06423361,1555.1,1554.7,6.88928388]
[1744377003022,12.92547361,1555.1,1554.7,19.75327388]
[1744377003224,0.06423361,1555.1,1554.8,6.4315]
[1744377003526,13.71081,1555.5,1554.8,6.4315]
[1744377003527,6.49360361,1555.4,1555.1,6.43031]
[1744377003686,8.31762809,1555.4,1555.1,6.43031]
[1744377003893,8.31762809,1555.4,1554.8,0.0195668]
[1744377003894,6.43074,1555.1,1554.8,0.0195668]
[1744377004092,6.49525361,1555.0,1554.8,0.0195668]
[1744377004287,0.06423361,1555.0,1554.9,6.43128]
[1744377004525,0.19333361,1555.3,1555.0,12.8615]
[1744377005024,0.19333361,1555.3,1555.0,6.43069]
[1744377005223,6.62299361,1555.3,1555.0,6.43069]
[1744377005395,2.40927742,1555.3,1555.0,12.86144]
[1744377005600,2.40927742,1555.3,1554.8,7.2137468]
[1744377005601,0.06423361,1555.3,1555.1,12.8604]
[1744377005821,0.06423361,1555.3,1555.0,6.43077]
[1744377006024,6.42977,1555.3,1554.9,10.75980353]
[1744377006223,7.283,1555.4,1555.2,6.43004]
[1744377006387,0.06423361,1555.5,1555.2,7.21139]
[1744377006596,6.42935,1555.4,1555.0,7.21224]
[1744377006940,6.43064,1555.1,1554.8,0.0195668]
[1744377007231,6.49514361,1555.0,1554.8,0.0195668]
[1744377007941,7.4111,1555.2,1554.9,6.43128]
[1744377008142,0.06423361,1555.1,1554.8,6.4510568]
[1744377008342,0.06423361,1555.1,1554.8,0.0195668]
[1744377008343,6.43113,1555.0,1554.8,0.0195668]
[1744377008570,6.49551361,1554.9,1554.8,0.0195668]
[1744377008768,0.06423361,1554.9,1554.8,0.0195668]
[1744377009070,6.43128,1554.9,1554.8,0.0195668]
[1744377010124,6.56038,1554.9,1554.8,0.0195668]
[1744377010361,8.50905436,1554.9,1554.8,0.0195668]
[1744377010542,8.57328797,1554.9,1554.8,0.0195668]
[1744377010859,7.34723361,1554.9,1554.8,0.0195668]
[1744377011035,7.283,1554.9,1554.8,0.0195668]
[1744377012637,13.90761361,1554.9,1554.8,0.0195668]
[1744377012836,17.39338,1554.9,1554.8,6.8e-06]
[1744377013026,24.15838,1554.9,1554.8,6.8e-06]
[1744377013229,21.095426,1554.9,1554.8,6.8e-06]
[1744377013767,27.860426,1554.9,1554.8,6.8e-06]
[1744377013969,21.095426,1554.9,1554.8,6.8e-06]
[1744377014170,20.545426,1554.9,1554.8,6.8e-06]
[1744377014540,0.1291,1554.9,1554.8,6.8e-06]
[1744377014745,13.90861361,1554.9,1554.8,6.8e-06]
[1744377014975,13.84438,1554.9,1554.8,6.8e-06]
[1744377015548,7.284,1554.9,1554.8,6.8e-06]
[1744377015869,13.77951361,1554.9,1554.8,6.8e-06]
[1744377016041,16.37943936,1554.9,1554.8,6.8e-06]
[1744377016762,19.50853936,1554.9,1554.8,6.8e-06]
[1744377016946,26.82353936,1554.9,1554.8,6.8e-06]
[1744377017573,31.15217289,1554.9,1554.8,6.8e-06]
[1744377018373,26.82353936,1554.9,1554.8,6.8e-06]
[1744377019271,20.05853936,1554.9,1554.8,6.8e-06]
[1744377019474,31.15217289,1554.9,1554.8,6.8e-06]
[1744377019688,6.43429,1554.2,1553.9,6.4354]
[1744377019870,7.35023361,1554.2,1553.9,8.534311]
[1744377020068,13.78460361,1554.2,1553.9,2.098911]
[1744377020267,20.15481,1554.2,1553.9,0.8118]
[1744377020752,7.286,1554.2,1553.9,0.8118]
[1744377020953,7.35023361,1554.2,1554.0,6.43479]
[1744377021168,7.35023361,1554.2,1553.9,7.24714]
[1744377021389,13.84832,1554.5,1554.1,6.43439]
[1744377021685,6.43424,1554.2,1553.9,0.8118]
[1744377021848,6.49893361,1554.1,1553.7,10.23703]
[1744377022053,6.43506,1554.0,1553.7,7.23703]
[1744377022259,0.06423361,1554.0,1553.7,13.67315]
[1744377022584,0.06423361,1554.0,1553.7,7.23702]
[1744377022781,0.06423361,1554.0,1553.8,6.43563]
[1744377022946,7.286,1554.1,1554.0,6.435]
[1744377023151,7.286,1554.1,1553.9,6.43521]
[1744377023352,7.286,1554.1,1553.8,6.43576]
[1744377023653,2.028092,1554.5,1553.9,6.43523]
[1744377023994,0.06423361,1554.6,1554.5,6.43293]
[1744377024156,0.06423361,1554.9,1554.6,6.4324]
[1744377024800,0.06423361,1555.0,1554.7,3.0]
[1744377024954,0.06423361,1555.2,1555.0,12.86088]
[1744377025155,7.35123361,1555.3,1555.0,6.43004]
[1744377025449,6.4303,1555.2,1554.8,7.25265]
[1744377025753,0.06423361,1555.1,1554.9,6.43105]
[1744377025951,14.45184336,1555.3,1554.8,0.8211]
[1744377025952,0.06423361,1555.2,1554.8,7.25272]
[1744377026152,6.4306,1555.1,1554.7,9.43207]
[1744377026376,0.06423361,1555.0,1554.6,0.765]
[1744377026567,13.71761,1554.9,1554.5,12.8657]
[1744377026778,0.06423361,1554.8,1554.6,6.43233]
[1744377027154,7.35023361,1554.9,1554.7,12.8642]
[1744377027407,7.35023361,1554.9,1554.7,6.4321]
[1744377027557,7.286,1554.9,1554.7,6.4321]
[1744377027764,0.1291,1555.2,1554.7,6.4321]
[1744377027765,13.84528,1555.2,1554.8,6.43169]
[1744377028063,13.84528,1555.2,1554.7,0.64321]
[1744377028064,7.286,1555.2,1555.0,6.43086]
[1744377028263,7.35023361,1555.2,1554.9,13.69102]
[1744377028469,7.35023361,1555.2,1554.9,13.69105]
[1744377028695,7.35023361,1555.2,1554.9,7.2599]
[1744377029397,7.35023361,1555.2,1554.9,13.69106]